fUST/lending_fUST_20260615
["ID","MTS","AMOUNT","RATE_DAILY","PERIOD"]
[425086083,1781476240000,-500.0,0.0001863,2]
[425086102,1781476240000,-500.0,0.00018689,2]
[425086087,1781476240000,-500.0,0.00018689,2]
[425086091,1781476240000,-500.0,0.00018689,2]
[425086098,1781476240000,-500.0,0.00018689,2]
[425086094,1781476240000,-4650.73,0.00018689,2]
[425086093,1781476240000,-630.45,0.00018689,2]
[425086096,1781476240000,-500.0,0.00018689,2]
[425086108,1781476240000,-2266.87,0.00018689,2]
[425086104,1781476240000,-1520.42,0.00018689,2]
[425086112,1781476240000,-720.07426097,0.00018689,2]
[425086089,1781476240000,-500.0,0.00018689,2]
[425086100,1781476240000,-1967.44,0.00018689,2]
[425086106,1781476240000,-190.28490547,0.00018689,2]
[425086110,1781476240000,-500.0,0.00018689,2]
[425086085,1781476240000,-561.8,0.00018632,2]
[425086271,1781476241000,-597.48352673,0.00018689,2]
[425086267,1781476241000,-1454.34573903,0.00018689,2]
[425086269,1781476241000,-1956.3,0.00018689,2]
[425086296,1781476241000,-1889.6834964,0.00018689,2]
[425086292,1781476241000,-42.16647327,0.00018689,2]
[425086294,1781476241000,-500.0,0.00018689,2]
[425086298,1781476241000,-1439.22207948,0.00018689,2]
[425086615,1781476312000,-500.0,0.00016438,2]
[425086616,1781476329000,-608.42168289,0.00016712,2]
[425086653,1781477431000,-3402.18777894,0.000159,2]
[425086652,1781477431000,-300.0,0.00015899,2]
[425086651,1781477431000,-974.543947,0.00015853,2]
[425086985,1781477440000,-511.28149142,0.00016763,2]
[425086987,1781477440000,-643.64,0.00016763,2]
[425086983,1781477440000,-500.0,0.00016763,2]
[425086973,1781477440000,-408.99070336,0.00016733,2]
[425086971,1781477440000,-500.34,0.00016712,2]
[425086981,1781477440000,-500.0,0.00016763,2]
[425086975,1781477440000,-408.24038093,0.00016763,2]
[425086969,1781477440000,-408.9907034,0.00016664,2]
[425086965,1781477440000,-217.269663,0.00015973,2]
[425086968,1781477440000,-262.45,0.00016225,2]
[425086977,1781477440000,-500.0,0.00016763,2]
[425086963,1781477440000,-9941.9854744,0.000159,2]
[425086979,1781477440000,-154.45842471,0.00016763,2]
[425086989,1781477440000,-512.37079723,0.00016763,2]
[425086994,1781477440000,-669.94,0.00016763,2]
[425086992,1781477440000,-507.87658735,0.00016763,2]
[425087000,1781477440000,-500.0,0.00016763,2]
[425087017,1781477440000,-1393.72,0.00016763,2]
[425087013,1781477440000,-500.0,0.00016763,2]
[425087015,1781477440000,-2077.96,0.00016763,2]
[425087011,1781477440000,-398.40959588,0.00016763,2]
[425087007,1781477440000,-1803.48,0.00016763,2]
[425087009,1781477440000,-101.59040412,0.00016763,2]
[425087003,1781477440000,-577.91,0.00016763,2]
[425087001,1781477440000,-500.0,0.00016763,2]
[425086998,1781477440000,-500.0,0.00016763,2]
[425086996,1781477440000,-510.47009872,0.00016763,2]
[425086990,1781477440000,-500.0,0.00016763,2]
[425087005,1781477440000,-1000.0,0.00016763,2]
[425087036,1781477441000,-466.73547948,0.00016764,2]
[425087031,1781477441000,-101.98191651,0.00016763,2]
[425087023,1781477441000,-1993.22,0.00016763,2]
[425087034,1781477441000,-91.26452052,0.00016764,2]
[425087019,1781477441000,-500.0,0.00016763,2]
[425087028,1781477441000,-398.01808349,0.00016763,2]
[425087025,1781477441000,-500.0,0.00016763,2]
[425087032,1781477441000,-408.73547948,0.00016764,2]
[425087026,1781477441000,-500.0,0.00016763,2]
[425087021,1781477441000,-500.0,0.00016763,2]
[425087313,1781477443000,-500.0,0.00016764,2]
[425087312,1781477443000,-834.66,0.00016764,2]
[425087304,1781477443000,-2519.26,0.00016764,2]
[425087303,1781477443000,-500.0,0.00016764,2]
[425087314,1781477443000,-500.0,0.00016764,2]
[425087310,1781477443000,-433.55112503,0.00016764,2]
[425087299,1781477443000,-500.0,0.00016764,2]
[425087281,1781477443000,-33.26452052,0.00016764,2]
[425087311,1781477443000,-500.0,0.00016764,2]
[425087285,1781477443000,-738.66,0.00016764,2]
[425087301,1781477443000,-508.6399388,0.00016764,2]
[425087297,1781477443000,-1304.67,0.00016764,2]
[425087288,1781477443000,-62.07479354,0.00016764,2]
[425087287,1781477443000,-500.0,0.00016764,2]
[425087292,1781477443000,-218.27554626,0.00016764,2]
[425087306,1781477443000,-500.0,0.00016764,2]
[425087291,1781477443000,-477.42445374,0.00016764,2]
[425087283,1781477443000,-500.0,0.00016764,2]
[425087316,1781477443000,-653.04,0.00016764,2]
[425087317,1781477443000,-534.21,0.00016764,2]
[425087318,1781477443000,-506.2264136,0.00016764,2]
[425087295,1781477443000,-1027.82445374,0.00016764,2]
[425087315,1781477443000,-500.0,0.00016764,2]
[425087335,1781477443000,-500.0,0.00016764,2]
[425087308,1781477443000,-66.44887497,0.00016764,2]
[425087354,1781477443000,-500.0,0.00016764,2]
[425087348,1781477443000,-3781.57,0.00016764,2]
[425087350,1781477443000,-1478.06,0.00016764,2]
[425087352,1781477443000,-500.0,0.00016764,2]
[425087358,1781477443000,-1172.17607391,0.00016764,2]
[425087347,1781477443000,-742.53,0.00016764,2]
[425087345,1781477443000,-1916.91,0.00016764,2]
[425087343,1781477443000,-500.0,0.00016764,2]
[425087341,1781477443000,-2029.46,0.00016764,2]
[425087356,1781477443000,-799.37254429,0.00016764,2]
[425087337,1781477443000,-1118.06,0.00016764,2]
[425087339,1781477443000,-581.63,0.00016764,2]
[425087319,1781477443000,-500.0,0.00016764,2]
[425087320,1781477443000,-128.25259101,0.00016764,2]
[425087329,1781477443000,-500.0,0.00016764,2]
[425087323,1781477443000,-241.08211405,0.00016764,2]
[425087334,1781477443000,-1062.94140798,0.00016764,2]
[425087328,1781477443000,-1793.27,0.00016764,2]
[425087331,1781477443000,-357.15859202,0.00016764,2]
[425087321,1781477443000,-379.42910977,0.00016764,2]
[425087326,1781477443000,-258.91788595,0.00016764,2]
[425087484,1781477446000,-4263.17,0.00016764,2]
[425087489,1781477446000,-500.0,0.00016764,2]
[425087493,1781477446000,-500.0,0.00016765,2]
[425087485,1781477446000,-690.22731873,0.00016764,2]
[425087490,1781477446000,-711.7,0.00016764,2]
[425087487,1781477446000,-500.0,0.00016764,2]
[425087495,1781477446000,-505.03395865,0.00016765,2]
[425087492,1781477446000,-558.70402172,0.00016764,2]
[425087488,1781477446000,-587.52,0.00016764,2]
[425087486,1781477446000,-500.0,0.00016764,2]
[425087497,1781477446000,-500.0,0.00016765,2]
[425087496,1781477446000,-508.27694975,0.00016765,2]
[425087479,1781477446000,-3038.95,0.00016764,2]
[425087494,1781477446000,-275.87094454,0.00016765,2]
[425087476,1781477446000,-500.0,0.00016764,2]
[425087480,1781477446000,-500.0,0.00016764,2]
[425087483,1781477446000,-4067.24,0.00016764,2]
[425087472,1781477446000,-500.0,0.00016764,2]
[425087474,1781477446000,-514.83269644,0.00016764,2]
[425087471,1781477446000,-517.6803846,0.00016764,2]
[425087491,1781477446000,-1965.37,0.00016764,2]
[425087482,1781477446000,-500.0,0.00016764,2]
[425087477,1781477446000,-577.43,0.00016764,2]
[425087481,1781477446000,-500.0,0.00016764,2]
[425087473,1781477446000,-516.5955594,0.00016764,2]
[425087470,1781477446000,-2104.47,0.00016764,2]
[425087469,1781477446000,-1275.32,0.00016764,2]
[425087468,1781477446000,-5034.37,0.00016764,2]
[425087466,1781477446000,-1360.93,0.00016763,2]
[425087467,1781477446000,-911.3413818,0.00016764,2]
[425087475,1781477446000,-500.0,0.00016764,2]
[425087499,1781477446000,-500.0,0.00016765,2]
[425087478,1781477446000,-1913.62,0.00016764,2]
[425087498,1781477446000,-509.19106804,0.00016765,2]
[425087515,1781477446000,-509.56130302,0.00016765,2]
[425087517,1781477446000,-500.0,0.00016765,2]
[425087521,1781477446000,-513.86676282,0.00016765,2]
[425087518,1781477446000,-507.55964781,0.00016765,2]
[425087519,1781477446000,-500.0,0.00016765,2]
[425087525,1781477446000,-4589.84,0.00016765,2]
[425087516,1781477446000,-500.0,0.00016765,2]
[425087526,1781477446000,-1213.67,0.00016765,2]
[425087524,1781477446000,-515.29209355,0.00016765,2]
[425087532,1781477446000,-500.0,0.00017037,2]
[425087529,1781477446000,-408.99070336,0.0001687,2]
[425087530,1781477446000,-408.99070336,0.00016939,2]
[425087531,1781477446000,-511.16310612,0.00017037,2]
[425087510,1781477446000,-500.0,0.00016765,2]
[425087527,1781477446000,-505.54563222,0.00016765,2]
[425087514,1781477446000,-500.0,0.00016765,2]
[425087528,1781477446000,-408.99070336,0.00016802,2]
[425087522,1781477446000,-500.0,0.00016765,2]
[425087523,1781477446000,-677.55,0.00016765,2]
[425087509,1781477446000,-500.0,0.00016765,2]
[425087505,1781477446000,-500.0,0.00016765,2]
[425087501,1781477446000,-1000.0,0.00016765,2]
[425087504,1781477446000,-500.0,0.00016765,2]
[425087502,1781477446000,-500.0,0.00016765,2]
[425087506,1781477446000,-500.0,0.00016765,2]
[425087500,1781477446000,-500.0,0.00016765,2]
[425087508,1781477446000,-583.44,0.00016765,2]
[425087507,1781477446000,-500.0,0.00016765,2]
[425087511,1781477446000,-500.0,0.00016765,2]
[425087512,1781477446000,-500.0,0.00016765,2]
[425087513,1781477446000,-516.39327538,0.00016765,2]
[425087503,1781477446000,-500.0,0.00016765,2]
[425087520,1781477446000,-613.48931942,0.00016765,2]
[425087575,1781477447000,-534.21,0.00017038,2]
[425087580,1781477447000,-1793.27,0.00017038,2]
[425087578,1781477447000,-500.0,0.00017038,2]
[425087576,1781477447000,-500.0,0.00017038,2]
[425087564,1781477447000,-2519.26,0.00017038,2]
[425087565,1781477447000,-500.0,0.00017038,2]
[425087559,1781477447000,-1246.1,0.00017038,2]
[425087560,1781477447000,-1304.67,0.00017038,2]
[425087561,1781477447000,-420.88297997,0.00017038,2]
[425087582,1781477447000,-1118.06,0.00017038,2]
[425087570,1781477447000,-500.0,0.00017038,2]
[425087562,1781477447000,-500.0,0.00017038,2]
[425087581,1781477447000,-500.0,0.00017038,2]
[425087592,1781477447000,-500.0,0.00017038,2]
[425087584,1781477447000,-500.0,0.00017038,2]
[425087590,1781477447000,-1478.06,0.00017038,2]
[425087588,1781477447000,-742.53,0.00017038,2]
[425087587,1781477447000,-500.0,0.00017038,2]
[425087589,1781477447000,-3781.57,0.00017038,2]
[425087586,1781477447000,-1916.91,0.00017038,2]
[425087603,1781477447000,-1913.62,0.00017038,2]
[425087604,1781477447000,-3038.95,0.00017038,2]
[425087595,1781477447000,-1275.32,0.00017038,2]
[425087594,1781477447000,-5034.37,0.00017038,2]
[425087602,1781477447000,-577.43,0.00017038,2]
[425087593,1781477447000,-2882.89,0.00017038,2]
[425087569,1781477447000,-834.66,0.00017038,2]
[425087583,1781477447000,-581.63,0.00017038,2]
[425087558,1781477447000,-500.0,0.00017038,2]
[425087547,1781477447000,-500.0,0.00017037,2]
[425087573,1781477447000,-653.04,0.00017038,2]
[425087535,1781477447000,-669.94,0.00017037,2]
[425087536,1781477447000,-600.22157914,0.00017037,2]
[425087534,1781477447000,-500.0,0.00017037,2]
[425087533,1781477447000,-643.64,0.00017037,2]
[425087537,1781477447000,-500.0,0.00017037,2]
[425087540,1781477447000,-1000.0,0.00017037,2]
[425087539,1781477447000,-577.91,0.00017037,2]
[425087543,1781477447000,-500.0,0.00017037,2]
[425087542,1781477447000,-500.0,0.00017037,2]
[425087538,1781477447000,-500.0,0.00017037,2]
[425087541,1781477447000,-1803.48,0.00017037,2]
[425087544,1781477447000,-2077.96,0.00017037,2]
[425087545,1781477447000,-1393.72,0.00017037,2]
[425087571,1781477447000,-500.0,0.00017038,2]
[425087591,1781477447000,-500.0,0.00017038,2]
[425087552,1781477447000,-1360.93,0.00017037,2]
[425087551,1781477447000,-500.0,0.00017037,2]
[425087546,1781477447000,-500.0,0.00017037,2]
[425087548,1781477447000,-1993.22,0.00017037,2]
[425087549,1781477447000,-500.0,0.00017037,2]
[425087550,1781477447000,-500.0,0.00017037,2]
[425087557,1781477447000,-738.66,0.00017038,2]
[425087553,1781477447000,-500.0,0.00017038,2]
[425087555,1781477447000,-500.0,0.00017038,2]
[425087554,1781477447000,-500.0,0.00017038,2]
[425087567,1781477447000,-500.0,0.00017038,2]
[425087572,1781477447000,-500.0,0.00017038,2]
[425087568,1781477447000,-500.0,0.00017038,2]
[425087556,1781477447000,-500.0,0.00017038,2]
[425087598,1781477447000,-586.34,0.00017038,2]
[425087655,1781477447000,-500.0,0.00017263,2]
[425087597,1781477447000,-500.0,0.00017038,2]
[425087634,1781477447000,-500.0,0.00017039,2]
[425087633,1781477447000,-500.0,0.00017039,2]
[425087641,1781477447000,-1213.67,0.00017039,2]
[425087642,1781477447000,-507.88581555,0.00017262,2]
[425087639,1781477447000,-677.55,0.00017039,2]
[425087638,1781477447000,-516.90210408,0.00017039,2]
[425087637,1781477447000,-500.0,0.00017039,2]
[425087640,1781477447000,-4589.84,0.00017039,2]
[425087650,1781477447000,-500.0,0.00017263,2]
[425087649,1781477447000,-500.0,0.00017263,2]
[425087648,1781477447000,-500.0,0.00017263,2]
[425087644,1781477447000,-751.4,0.00017262,2]
[425087652,1781477447000,-1172.49,0.00017263,2]
[425087647,1781477447000,-803.3,0.00017263,2]
[425087643,1781477447000,-500.0,0.00017262,2]
[425087645,1781477447000,-500.0,0.00017262,2]
[425087646,1781477447000,-500.0,0.00017262,2]
[425087651,1781477447000,-214.05496498,0.00017263,2]
[425087653,1781477447000,-509.04422271,0.00017263,2]
[425087656,1781477447000,-2971.68,0.00017263,2]
[425087601,1781477447000,-500.0,0.00017038,2]
[425087658,1781477447000,-500.0,0.00017263,2]
[425087654,1781477447000,-500.0,0.00017263,2]
[425087660,1781477447000,-500.0,0.00017263,2]
[425087657,1781477447000,-1746.96,0.00017263,2]
[425087661,1781477447000,-827.47,0.00017263,2]
[425087659,1781477447000,-508.14654127,0.00017263,2]
[425087636,1781477447000,-500.0,0.00017039,2]
[425087635,1781477447000,-500.0,0.00017039,2]
[425087631,1781477447000,-500.0,0.00017039,2]
[425087630,1781477447000,-362.10522299,0.00017039,2]
[425087600,1781477447000,-500.0,0.00017038,2]
[425087599,1781477447000,-4528.25,0.00017038,2]
[425087596,1781477447000,-2104.47,0.00017038,2]
[425087605,1781477447000,-500.0,0.00017038,2]
[425087607,1781477447000,-500.0,0.00017038,2]
[425087606,1781477447000,-500.0,0.00017038,2]
[425087608,1781477447000,-488.61271786,0.00017038,2]
[425087616,1781477447000,-27797.27,0.00017038,2]
[425087632,1781477447000,-512.39755596,0.00017039,2]
[425087609,1781477447000,-4067.24,0.00017038,2]
[425087612,1781477447000,-500.0,0.00017038,2]
[425087614,1781477447000,-587.52,0.00017038,2]
[425087611,1781477447000,-684.26,0.00017038,2]
[425087613,1781477447000,-500.0,0.00017038,2]
[425087610,1781477447000,-4263.17,0.00017038,2]
[425087617,1781477447000,-711.7,0.00017038,2]
[425087615,1781477447000,-500.0,0.00017038,2]
[425087623,1781477447000,-511.52046905,0.00017039,2]
[425087622,1781477447000,-1000.0,0.00017039,2]
[425087621,1781477447000,-500.0,0.00017039,2]
[425087619,1781477447000,-1703.05,0.00017038,2]
[425087620,1781477447000,-583.63439727,0.00017039,2]
[425087624,1781477447000,-500.0,0.00017039,2]
[425087625,1781477447000,-500.0,0.00017039,2]
[425087629,1781477447000,-583.44,0.00017039,2]
[425087628,1781477447000,-500.0,0.00017039,2]
[425087627,1781477447000,-500.0,0.00017039,2]
[425087618,1781477447000,-1965.37,0.00017038,2]
[425087626,1781477447000,-500.0,0.00017039,2]
[425087673,1781477448000,-672.54,0.00017263,2]
[425087669,1781477448000,-510.01120203,0.00017263,2]
[425087667,1781477448000,-1175.89,0.00017263,2]
[425087679,1781477448000,-517.68176322,0.00017263,2]
[425087668,1781477448000,-509.04159932,0.00017263,2]
[425087663,1781477448000,-500.0,0.00017263,2]
[425087662,1781477448000,-500.0,0.00017263,2]
[425087665,1781477448000,-500.0,0.00017263,2]
[425087666,1781477448000,-500.0,0.00017263,2]
[425087664,1781477448000,-509.23792606,0.00017263,2]
[425087671,1781477448000,-1091.04,0.00017263,2]
[425087678,1781477448000,-512.70078888,0.00017263,2]
[425087676,1781477448000,-517.47,0.00017263,2]
[425087687,1781477448000,-508.03178203,0.00017263,2]
[425087675,1781477448000,-500.0,0.00017263,2]
[425087670,1781477448000,-500.0,0.00017263,2]
[425087674,1781477448000,-504.97481146,0.00017263,2]
[425087677,1781477448000,-648.67953515,0.00017263,2]
[425087682,1781477448000,-507.48060328,0.00017263,2]
[425087680,1781477448000,-509.17839804,0.00017263,2]
[425087683,1781477448000,-513.08724521,0.00017263,2]
[425087690,1781477448000,-278.13544259,0.00017263,2]
[425087686,1781477448000,-78.06470385,0.00017263,2]
[425087681,1781477448000,-505.46163632,0.00017263,2]
[425087684,1781477448000,-1468.84529615,0.00017263,2]
[425087689,1781477448000,-392.51455741,0.00017263,2]
[425087672,1781477448000,-510.38946853,0.00017263,2]
[425087691,1781477448000,-392.08455741,0.00017263,2]
[425087785,1781478632000,-423.0,0.0001,5]
[425087786,1781478632000,-10.45811007,0.00013,2]
[425087787,1781478632000,-4940.90808308,0.00013,2]
[425087826,1781478638000,-5775.47332597,0.00016661,2]
[425087837,1781478638000,-1653.19,0.00016759,2]
[425087840,1781478638000,-1904.8,0.00016759,2]
[425087836,1781478638000,-529.75,0.00016759,2]
[425087844,1781478638000,-500.0,0.00016759,2]
[425087842,1781478638000,-1277.57,0.00016759,2]
[425087853,1781478638000,-476.11125615,0.0001676,2]
[425087848,1781478638000,-187.98393804,0.00016759,2]
[425087846,1781478638000,-1827.11,0.00016759,2]
[425087849,1781478638000,-1247.52,0.00016759,2]
[425087851,1781478638000,-1643.83,0.00016759,2]
[425087859,1781478638000,-533.16,0.0001676,2]
[425087857,1781478638000,-2642.65,0.0001676,2]
[425087855,1781478638000,-1354.89,0.0001676,2]
[425087824,1781478638000,-185.67369651,0.00016661,2]
[425087813,1781478638000,-91.82474455,0.00015264,2]
[425087822,1781478638000,-136.86050252,0.00016067,2]
[425087820,1781478638000,-1116.31579256,0.00016067,2]
[425087818,1781478638000,-222.340271,0.00015969,2]
[425087832,1781478638000,-1229.70443758,0.00016661,2]
[425087834,1781478638000,-185.67369648,0.0001673,2]
[425087814,1781478638000,-283.1585829,0.00015476,2]
[425087805,1781478638000,-430.09144916,0.000145,2]
[425087810,1781478638000,-362.4173099,0.00015264,2]
[425087799,1781478638000,-60.93331922,0.00013,2]
[425087803,1781478638000,-298.97359107,0.000145,2]
[425087801,1781478638000,-191.34309828,0.000145,2]
[425087807,1781478638000,-202.08744498,0.00015264,2]
[425087809,1781478638000,-315.76163278,0.00015264,2]
[425087874,1781478638000,-500.0,0.0001676,2]
[425087816,1781478638000,-871.421018,0.00015901,2]
[425087880,1781478638000,-1801.59,0.0001676,2]
[425087910,1781478638000,-500.0,0.00016761,2]
[425087861,1781478638000,-1944.9,0.0001676,2]
[425087906,1781478638000,-500.0,0.00016761,2]
[425087901,1781478638000,-500.0,0.00016761,2]
[425087898,1781478638000,-614.11,0.00016761,2]
[425087908,1781478638000,-500.0,0.00016761,2]
[425087911,1781478638000,-500.0,0.00016761,2]
[425087913,1781478638000,-2309.32,0.00016761,2]
[425087897,1781478638000,-677.11,0.00016761,2]
[425087915,1781478638000,-500.0,0.00016761,2]
[425087927,1781478638000,-500.0,0.00016761,2]
[425087924,1781478638000,-516.94037765,0.00016761,2]
[425087926,1781478638000,-500.0,0.00016761,2]
[425087917,1781478638000,-1000.0,0.00016761,2]
[425087922,1781478638000,-765.1,0.00016761,2]
[425087876,1781478638000,-538.56,0.0001676,2]
[425087919,1781478638000,-500.0,0.00016761,2]
[425087904,1781478638000,-1195.95,0.00016761,2]
[425087920,1781478638000,-510.13218103,0.00016761,2]
[425087902,1781478638000,-1142.26,0.00016761,2]
[425087871,1781478638000,-3728.3,0.0001676,2]
[425087865,1781478638000,-500.0,0.0001676,2]
[425087873,1781478638000,-2785.7,0.0001676,2]
[425087869,1781478638000,-1754.15,0.0001676,2]
[425087863,1781478638000,-500.0,0.0001676,2]
[425087878,1781478638000,-652.39,0.0001676,2]
[425087867,1781478638000,-1929.1,0.0001676,2]
[425087884,1781478638000,-500.0,0.00016761,2]
[425087886,1781478638000,-500.0,0.00016761,2]
[425087894,1781478638000,-500.0,0.00016761,2]
[425087890,1781478638000,-500.0,0.00016761,2]
[425087882,1781478638000,-508.16512038,0.00016761,2]
[425087892,1781478638000,-500.0,0.00016761,2]
[425087888,1781478638000,-590.0,0.00016761,2]
[425088006,1781478639000,-500.0,0.00016761,2]
[425087989,1781478639000,-529.31,0.00016761,2]
[425087991,1781478639000,-511.71282603,0.00016761,2]
[425087997,1781478639000,-500.0,0.00016761,2]
[425087993,1781478639000,-534.82,0.00016761,2]
[425087999,1781478639000,-510.89239461,0.00016761,2]
[425088001,1781478639000,-500.0,0.00016761,2]
[425088003,1781478639000,-500.0,0.00016761,2]
[425088008,1781478639000,-500.0,0.00016761,2]
[425088005,1781478639000,-500.0,0.00016761,2]
[425087985,1781478639000,-509.0228861,0.00016761,2]
[425087995,1781478639000,-500.0,0.00016761,2]
[425088028,1781478639000,-1674.17,0.00016762,2]
[425088012,1781478639000,-2847.86,0.00016761,2]
[425088026,1781478639000,-509.83064731,0.00016761,2]
[425088016,1781478639000,-500.0,0.00016761,2]
[425088014,1781478639000,-484.4143262,0.00016761,2]
[425088030,1781478639000,-500.0,0.00016762,2]
[425088036,1781478639000,-1168.56,0.00016762,2]
[425088022,1781478639000,-513.95735456,0.00016761,2]
[425088018,1781478639000,-561.91,0.00016761,2]
[425088020,1781478639000,-4339.57,0.00016761,2]
[425088024,1781478639000,-500.0,0.00016761,2]
[425088034,1781478639000,-500.0,0.00016762,2]
[425087987,1781478639000,-500.0,0.00016761,2]
[425088010,1781478639000,-3907.91,0.00016761,2]
[425087975,1781478639000,-500.0,0.00016761,2]
[425087948,1781478639000,-500.0,0.00016761,2]
[425087981,1781478639000,-513.18749293,0.00016761,2]
[425088032,1781478639000,-792.99,0.00016762,2]
[425087933,1781478639000,-500.0,0.00016761,2]
[425087931,1781478639000,-500.0,0.00016761,2]
[425087935,1781478639000,-500.0,0.00016761,2]
[425087929,1781478639000,-500.0,0.00016761,2]
[425087937,1781478639000,-598.62,0.00016761,2]
[425087945,1781478639000,-500.0,0.00016761,2]
[425087941,1781478639000,-769.83,0.00016761,2]
[425087946,1781478639000,-500.0,0.00016761,2]
[425087943,1781478639000,-500.0,0.00016761,2]
[425087958,1781478639000,-680.66,0.00016761,2]
[425087939,1781478639000,-500.0,0.00016761,2]
[425087977,1781478639000,-500.0,0.00016761,2]
[425087950,1781478639000,-1024.89,0.00016761,2]
[425087954,1781478639000,-500.0,0.00016761,2]
[425087962,1781478639000,-3466.44,0.00016761,2]
[425087960,1781478639000,-1757.17,0.00016761,2]
[425087956,1781478639000,-500.0,0.00016761,2]
[425087966,1781478639000,-720.09,0.00016761,2]
[425087971,1781478639000,-1123.64,0.00016761,2]
[425087973,1781478639000,-1000.0,0.00016761,2]
[425087969,1781478639000,-500.0,0.00016761,2]
[425087983,1781478639000,-500.0,0.00016761,2]
[425087967,1781478639000,-4614.83,0.00016761,2]
[425087964,1781478639000,-500.0,0.00016761,2]
[425087979,1781478639000,-515.87894095,0.00016761,2]
[425087952,1781478639000,-1169.04,0.00016761,2]
[425088037,1781478639000,-500.0,0.00016762,2]
[425088080,1781478639000,-510.15175718,0.00016763,2]
[425088053,1781478639000,-500.0,0.00016762,2]
[425088098,1781478639000,-500.0,0.00016763,2]
[425088102,1781478639000,-500.0,0.00016763,2]
[425088109,1781478639000,-506.87609786,0.00016763,2]
[425088127,1781478639000,-500.0,0.00016763,2]
[425088125,1781478639000,-500.0,0.00016763,2]
[425088123,1781478639000,-500.0,0.00016763,2]
[425088111,1781478639000,-510.68937856,0.00016763,2]
[425088129,1781478639000,-511.57345979,0.00016763,2]
[425088131,1781478639000,-1004.09,0.00016763,2]
[425088117,1781478639000,-500.0,0.00016763,2]
[425088115,1781478639000,-509.87397683,0.00016763,2]
[425088113,1781478639000,-1144.43,0.00016763,2]
[425088051,1781478639000,-655.75,0.00016762,2]
[425088121,1781478639000,-500.0,0.00016763,2]
[425088135,1781478639000,-899.48,0.00016763,2]
[425088119,1781478639000,-500.0,0.00016763,2]
[425088147,1781478639000,-500.0,0.00016763,2]
[425088137,1781478639000,-951.34,0.00016763,2]
[425088151,1781478639000,-500.0,0.00016763,2]
[425088155,1781478639000,-360.87024187,0.00016763,2]
[425088153,1781478639000,-500.0,0.00016763,2]
[425088149,1781478639000,-500.0,0.00016763,2]
[425088143,1781478639000,-1305.85,0.00016763,2]
[425088139,1781478639000,-515.06250677,0.00016763,2]
[425088141,1781478639000,-500.0,0.00016763,2]
[425088100,1781478639000,-500.0,0.00016763,2]
[425088104,1781478639000,-1043.37,0.00016763,2]
[425088133,1781478639000,-500.0,0.00016763,2]
[425088107,1781478639000,-500.0,0.00016763,2]
[425088063,1781478639000,-621.09,0.00016762,2]
[425088057,1781478639000,-1632.09,0.00016762,2]
[425088055,1781478639000,-26639.05,0.00016762,2]
[425088045,1781478639000,-507.44278896,0.00016762,2]
[425088065,1781478639000,-4207.36,0.00016762,2]
[425088061,1781478639000,-608.42168289,0.00016762,2]
[425088041,1781478639000,-1482.45,0.00016762,2]
[425088043,1781478639000,-567.3,0.00016762,2]
[425088039,1781478639000,-644.52,0.00016762,2]
[425088047,1781478639000,-500.0,0.00016762,2]
[425088049,1781478639000,-500.0,0.00016762,2]
[425088059,1781478639000,-500.0,0.00016762,2]